bitfinex-derivatives/quotes_ETHF0:USTF0_20240830
["timestamp","ask_amount","ask_price","bid_price","bid_amount"]
[1725044313155,2.55247677,2532.2,2531.8,4.55]
[1725044313356,2.55247677,2532.2,2532.1,4.94498]
[1725044313862,2.55247677,2532.2,2532.1,4.94497]
[1725044314353,2.55247677,2532.2,2532.1,4.9452]
[1725044314552,5.76027677,2532.2,2532.1,0.3952]
[1725044315550,2.55247677,2532.2,2532.1,4.9452]
[1725044315763,3.2078,2533.0,2532.7,0.39489]
[1725044316057,2.17832323,2532.8,2532.7,4.94489]
[1725044317457,0.00592323,2533.0,2532.9,0.39486]
[1725044317660,2.18424646,2533.0,2532.9,0.39486]
[1725044317856,2.18424646,2533.0,2532.7,4.55]
[1725044318055,2.18424646,2533.0,2532.9,0.39486]
[1725044318260,0.00592323,2533.0,2532.9,0.39486]
[1725044318458,3.2078,2533.4,2532.6,3.2078]
[1725044318664,2.17832323,2533.1,2532.9,0.39485]
[1725044318860,2.17832323,2533.1,2533.0,0.39484]
[1725044320660,0.00592323,2533.3,2533.2,0.39481]
[1725044320863,0.00592323,2533.3,2533.1,0.39482]
[1725044320864,2.18424646,2533.3,2533.1,0.39482]
[1725044321567,3.2078,2533.8,2533.2,11.895]
[1725044321862,0.74793507,2533.6,2533.5,8.34257]
[1725044322164,3.2078,2534.6,2534.0,0.39469]
[1725044322363,3.2078,2534.2,2533.7,0.58865514]
[1725044322666,0.55793507,2533.8,2533.7,0.98930837]
[1725044322863,0.55793507,2534.0,2533.9,0.39469]
[1725044323461,0.55793507,2534.0,2533.9,0.3947]
[1725044323965,3.21372323,2534.2,2534.1,0.39467]
[1725044324267,0.5638583,2534.2,2534.1,0.39467]
[1725044325260,3.2078,2535.0,2534.1,9.9464]
[1725044325468,0.50105081,2534.5,2534.4,0.39462]
[1725044325762,0.50105081,2534.7,2534.6,0.39459]
[1725044327163,0.50105081,2534.7,2534.3,4.93548519]
[1725044327465,0.50105081,2534.7,2534.3,5.33012519]
[1725044327466,0.50105081,2534.4,2534.3,5.33012519]
[1725044328266,0.50105081,2534.4,2534.3,4.93548519]
[1725044328576,0.50105081,2534.4,2533.9,3.2078]
[1725044328577,3.70885081,2534.4,2534.2,0.39465]
[1725044328773,3.2078,2534.4,2534.2,0.39465]
[1725044329070,3.70885081,2534.3,2534.2,0.39465]
[1725044329977,3.70885081,2534.3,2534.1,0.71473744]
[1725044329978,0.50105081,2534.3,2534.1,0.71473744]
[1725044330166,0.50105081,2534.2,2534.1,0.39466]
[1725044330367,0.50105081,2534.2,2534.0,0.39468]
[1725044330668,3.2078,2534.5,2534.0,0.39468]
[1725044330868,0.50105081,2534.1,2534.0,0.39468]
[1725044333872,3.2078,2534.5,2534.2,0.39465]
[1725044334070,0.50105081,2534.2,2534.1,0.39467]
[1725044334476,0.3153954,2534.2,2534.1,0.39467]
[1725044334668,0.3153954,2534.2,2534.1,0.78987]
[1725044336164,0.3153954,2534.2,2534.1,0.3952]
[1725044336369,0.3153954,2534.2,2534.1,0.78987]
[1725044337274,0.00592323,2534.9,2534.2,0.39466]
[1725044337464,0.00592323,2534.9,2534.3,0.39464]
[1725044337465,0.3153954,2534.4,2534.3,0.39464]
[1725044337971,0.3153954,2534.4,2534.3,4.94464]
[1725044340373,3.2078,2534.8,2534.6,0.39459]
[1725044340574,0.3153954,2534.7,2534.5,0.3946]
[1725044340771,3.2078,2534.8,2534.6,0.39459]
[1725044340975,0.3153954,2534.6,2534.5,0.3946]
[1725044341184,3.2078,2534.8,2534.6,0.39459]
[1725044341475,0.3153954,2534.5,2534.4,2.56272]
[1725044341972,0.00592323,2534.9,2534.8,0.39456]
[1725044342378,0.32131863,2534.9,2534.8,0.39456]
[1725044342581,0.00592323,2534.9,2534.8,4.33936]
[1725044343172,0.00592323,2534.9,2534.8,0.39456]
[1725044343575,0.32131863,2534.9,2534.7,0.39457]
[1725044343777,0.3153954,2534.8,2534.7,0.52065602]
[1725044344484,0.29019539,2534.8,2534.7,0.52065602]
[1725044346885,0.00592323,2534.9,2534.8,0.39456]
[1725044347082,0.00592323,2534.9,2534.8,4.33936]
[1725044347483,0.29611862,2534.9,2534.8,0.39456]
[1725044347779,0.29611862,2534.9,2534.7,0.52065602]
[1725044347981,0.29611862,2534.9,2534.7,0.52066602]
[1725044347982,0.29019539,2534.8,2534.7,0.52066602]
[1725044348180,0.29019539,2534.8,2534.7,0.12608602]
[1725044348375,0.29019539,2534.8,2534.6,4.55]
[1725044348578,0.29019539,2534.7,2534.4,0.51917975]
[1725044348776,0.40047323,2534.9,2534.5,3.2078]
[1725044348974,0.00592323,2534.9,2534.5,3.2078]
[1725044349175,0.29019539,2534.6,2534.5,3.2078]
[1725044349383,3.49799539,2534.6,2534.4,0.12455975]
[1725044349584,0.29019539,2534.5,2534.3,4.94464]
[1725044349889,0.29019539,2534.4,2534.3,4.94464]
[1725044350382,0.29019539,2534.4,2534.3,5.06956582]
[1725044350783,0.00592323,2534.9,2534.7,0.39456]
[1725044350978,0.00592323,2534.9,2534.8,4.55]
[1725044351180,0.29611862,2534.9,2534.8,4.94456]
[1725044351587,0.00592323,2534.9,2534.8,4.94456]
[1725044351884,0.00592323,2534.9,2534.8,11.97867]
[1725044352392,3.2078,2535.6,2534.9,0.98636]
[1725044352685,3.2078,2535.6,2535.2,0.39449]
[1725044353073,0.29019539,2535.3,2535.0,2.42182]
[1725044353383,0.29019539,2535.1,2535.0,2.42182]
[1725044353680,0.29019539,2535.1,2534.9,3.21372323]
[1725044353983,0.29019539,2535.0,2534.9,3.60827323]
[1725044354481,0.29019539,2535.0,2534.9,4.12628879]
[1725044355772,0.29019539,2535.0,2534.9,0.91848879]
[1725044356886,0.29019539,2535.0,2534.9,0.52393879]
[1725044357087,0.29019539,2535.0,2534.9,0.40112323]
[1725044357282,3.49799539,2535.0,2534.9,0.40112323]
[1725044358684,3.89252539,2535.0,2534.9,0.40112323]
[1725044358883,3.49799539,2535.0,2534.9,0.40112323]
[1725044361890,3.49799539,2535.0,2534.9,0.00592323]
[1725044361891,9.89252539,2535.0,2534.9,0.00592323]
[1725044362083,11.97642539,2535.0,2534.9,0.00592323]
[1725044362479,0.39457,2534.8,2534.3,4.6949]
[1725044362789,0.39457,2534.8,2534.5,0.39461]
[1725044363287,4.34017,2534.8,2534.4,0.39462]
[1725044363493,1.02059212,2534.9,2534.3,5.81262666]
[1725044363675,1.02059212,2534.9,2534.6,0.39458]
[1725044364081,4.96539212,2534.9,2534.6,0.39458]
[1725044364282,3.9448,2534.8,2534.3,5.81262666]
[1725044364482,1.02059212,2534.8,2534.3,5.81262666]
[1725044364683,1.02059212,2534.8,2534.6,0.39459]
[1725044364984,1.02059212,2534.9,2534.5,4.55]
[1725044365179,1.02059212,2534.9,2534.7,0.39457]
[1725044365385,1.03066067,2534.9,2534.8,0.39456]
[1725044365891,1.03066067,2534.9,2534.5,5.53652]
[1725044366195,1.03066067,2534.9,2534.6,0.37915385]
[1725044366393,1.03066067,2534.9,2534.8,0.39455]
[1725044366587,1.03066067,2534.9,2534.7,0.39456]
[1725044366789,1.03134019,2534.9,2534.8,0.39456]
[1725044367294,4.74776985,2535.0,2534.8,0.39456]
[1725044367892,3.2078,2534.9,2534.8,0.39456]
[1725044368287,3.2078,2534.9,2534.8,0.37921721]
[1725044368790,3.2078,2534.9,2534.7,0.39457]
[1725044368996,4.74776985,2534.9,2534.7,0.39457]
[1725044369196,3.2078,2534.9,2534.7,0.39457]
[1725044369490,4.33937,2534.8,2534.5,4.55]
[1725044369697,1.53996985,2534.7,2534.3,5.09546323]
[1725044369992,3.2078,2534.4,2534.3,0.00592323]
[1725044370189,3.2078,2534.4,2534.3,0.38535193]
[1725044370386,7.1534,2534.4,2534.3,0.38535193]
[1725044370590,9.08798985,2534.4,2534.3,0.00592323]
[1725044370997,8.69336985,2534.4,2534.3,0.00592323]
[1725044371296,7.1534,2534.4,2534.3,0.38548686]
[1725044371696,8.69336985,2534.4,2534.3,0.00592323]
[1725044372591,7.1534,2534.4,2534.3,0.00592323]
[1725044372895,7.1534,2534.4,2534.3,0.38563565]
[1725044373497,7.1534,2534.4,2534.3,0.00592323]
[1725044373992,7.54802,2534.4,2534.3,0.00592323]
[1725044374393,7.54802,2534.4,2534.3,0.40112323]
[1725044374593,13.54802,2534.4,2534.3,0.00592323]
[1725044374796,15.08798985,2534.4,2534.3,0.00592323]
[1725044375897,15.096782,2534.4,2534.3,0.00592323]
[1725044376302,14.53459,2534.4,2534.3,0.00592323]
[1725044376612,13.54802,2534.4,2534.3,0.00592323]
[1725044376799,8.70201688,2534.4,2534.3,0.00592323]
[1725044377003,7.1534,2534.4,2534.3,0.40056323]
[1725044377803,7.1534,2534.4,2534.3,0.00592323]
[1725044378197,1.07811688,2534.5,2534.4,0.39462]
[1725044378399,1.0322974,2534.7,2534.6,0.39459]
[1725044378599,1.0322974,2534.8,2534.7,0.39458]
[1725044378790,1.0322974,2534.9,2534.8,0.39456]
[1725044378998,1.0322974,2534.9,2534.8,0.77417155]
[1725044379296,5.25647621,2535.4,2534.9,0.39455]
[1725044379297,1.0322974,2535.0,2534.9,0.39455]
[1725044379599,1.0322974,2535.1,2535.0,0.39453]
[1725044379796,1.0322974,2535.1,2535.0,2.92036544]
[1725044380100,0.00393251,2535.4,2535.1,0.39452]
[1725044380302,1.03196356,2535.2,2535.1,0.39452]
[1725044381002,1.03196356,2535.2,2535.1,0.77416313]
[1725044381505,1.03196356,2535.2,2535.1,2.82296313]
[1725044381693,0.00393251,2535.4,2535.1,2.42844313]
[1725044381897,0.00393251,2535.4,2535.3,4.94448]
[1725044382704,1.03570181,2535.4,2535.3,4.94448]
[1725044383014,1.03570181,2535.4,2535.3,5.32412313]
[1725044383307,0.00393251,2535.4,2535.3,5.32412313]
[1725044384998,0.00393251,2535.4,2535.3,4.94448]
[1725044385605,0.00393251,2535.4,2535.3,4.55]
[1725044386106,3.94793251,2535.4,2535.3,4.55]
[1725044386303,4.97970181,2535.4,2535.3,4.55]
[1725044386500,3.94793251,2535.4,2535.3,4.55]
[1725044387610,4.97970181,2535.4,2535.3,4.55]
[1725044388205,0.00393251,2535.4,2535.3,4.55]
[1725044389400,3.94793251,2535.4,2535.3,4.55]
[1725044389604,5.37417181,2535.4,2535.3,4.55]
[1725044389804,4.97970181,2535.4,2535.3,4.55]
[1725044389999,5.37417181,2535.4,2535.3,4.55]
[1725044390207,4.97970181,2535.4,2535.3,4.55]
[1725044390404,4.97970181,2535.4,2535.3,4.94448]
[1725044390600,1.03570181,2535.4,2535.3,4.94448]
[1725044390908,0.00393251,2535.4,2535.3,4.94448]
[1725044391510,0.00393251,2535.4,2535.3,4.55]
[1725044392005,0.00393251,2535.4,2535.3,3.41]
[1725044392508,0.00393251,2535.4,2535.3,3.80448]
[1725044393510,0.39840251,2535.4,2535.3,3.41]
[1725044393714,0.00393251,2535.4,2535.3,3.41]
[1725044394017,0.39840251,2535.4,2535.3,3.41]
[1725044394210,0.00393251,2535.4,2535.3,3.41]
[1725044394414,0.00393251,2535.4,2535.3,3.8052]
[1725044397910,0.00393251,2535.4,2535.3,4.19968]
[1725044398220,1.0317693,2535.8,2535.7,0.39442]
[1725044398516,0.98582,2536.4,2535.8,0.39441]
[1725044398517,1.0317693,2536.0,2535.8,0.39441]
[1725044398711,1.0317693,2536.0,2535.8,2.1754]
[1725044399434,4.2395693,2536.0,2535.8,2.1754]
[1725044400132,1.0317693,2536.1,2535.8,2.1754]
[1725044400432,6.6178,2535.9,2535.1,3.2078]
[1725044400636,3.2078,2535.2,2535.1,0.12392757]
[1725044400930,4.2379789,2535.2,2534.9,4.19894]
[1725044401142,4.2379789,2535.2,2534.6,5.4045]
[1725044401143,10.2379789,2535.2,2534.6,5.4045]
[1725044401324,1.0301789,2535.1,2534.6,5.4045]
[1725044401524,1.0301789,2535.1,2534.9,3.41]
[1725044401825,4.2379789,2535.2,2534.6,2.12304591]
[1725044402034,0.39458,2534.7,2534.6,0.00592323]
[1725044402233,3.21372323,2534.9,2533.9,0.89626819]
[1725044402533,1.03055547,2534.4,2534.1,3.41]
[1725044402924,1.03055547,2534.2,2533.7,4.0308]
[1725044403126,3.2078,2534.0,2533.5,3.58850239]
[1725044403337,1.03055547,2534.0,2533.6,0.00592323]
[1725044403532,1.03055547,2534.0,2533.7,3.41]
[1725044403748,4.23835547,2534.0,2533.7,3.41]
[1725044404042,1.03055547,2534.2,2533.8,8.15251]
[1725044404229,1.03055547,2534.3,2533.8,8.15251]
[1725044404742,1.42521547,2534.2,2533.8,4.55]
[1725044404927,1.42521547,2534.2,2533.7,2.0031]
[1725044404928,3.2078,2534.1,2533.7,2.0031]
[1725044405231,4.23835547,2534.1,2533.6,1.98822323]
[1725044405432,4.63303547,2534.1,2533.6,1.98822323]
[1725044405827,1.03055547,2534.0,2533.6,1.98822323]
[1725044406029,1.42524547,2534.0,2533.6,1.98822323]
[1725044406233,1.03055547,2534.0,2533.6,1.98822323]
[1725044406738,1.03055547,2533.9,2533.6,0.00592323]
[1725044406925,1.03055547,2533.8,2533.6,0.00592323]
[1725044407127,4.1275,2533.9,2533.6,0.00592323]
[1725044407128,9.49916547,2533.9,2533.6,0.00592323]
[1725044407336,3.60253,2533.7,2533.6,0.00592323]
[1725044407833,3.60253,2533.7,2532.9,6.93385]
[1725044407834,0.39479,2533.4,2532.9,6.93385]
[1725044408136,0.39479,2533.4,2533.0,0.39484]
[1725044408436,3.2078,2533.6,2533.2,4.55]
[1725044408639,3.2078,2533.6,2533.3,2.43579]
[1725044409341,3.2078,2533.6,2533.3,2.041]
[1725044409736,3.2078,2533.6,2533.3,2.43579]
[1725044409934,3.2078,2533.6,2533.3,2.041]
[1725044410441,0.00592323,2533.7,2533.5,4.55]
[1725044410642,0.00592323,2533.7,2533.6,0.39475]
[1725044410943,0.00592323,2533.7,2533.6,6.34505]
[1725044411333,3.21372323,2533.7,2533.6,2.0031]
[1725044411637,7.55566323,2533.7,2533.3,2.16271635]
[1725044411835,3.21372323,2533.7,2533.3,2.041]
[1725044412030,3.60846323,2533.7,2533.3,2.041]
[1725044412235,0.3948,2533.3,2533.2,0.00592323]
[1725044412553,3.2078,2533.3,2533.2,0.00592323]
[1725044412736,7.155,2533.3,2533.2,0.00592323]
[1725044413136,7.5498,2533.3,2533.2,0.00592323]
[1725044413331,13.5498,2533.3,2533.2,0.00592323]
[1725044413540,13.155,2533.3,2533.2,0.00592323]
[1725044413846,13.5498,2533.3,2533.2,0.00592323]
[1725044414344,14.5368,2533.3,2533.2,0.00592323]
[1725044414544,20.72,2533.3,2533.2,0.00592323]
[1725044415136,19.733,2533.3,2533.2,0.00592323]
[1725044416531,20.72,2533.3,2533.2,0.00592323]
[1725044416943,0.39486,2532.9,2532.8,3.2078]
[1725044417143,0.39485,2533.0,2532.8,3.2078]
[1725044417339,0.39486,2532.9,2532.8,3.2078]
[1725044417740,3.948,2532.9,2532.8,3.2078]
[1725044418136,4.34286,2532.9,2532.8,3.2078]
[1725044418337,3.948,2532.9,2532.8,3.2078]
[1725044418542,3.948,2532.9,2532.8,3.60267]
[1725044419452,3.948,2532.9,2532.8,3.2078]
[1725044419646,3.948,2532.9,2532.8,3.60267]
[1725044420038,3.2078,2533.3,2533.0,0.39484]
[1725044420247,7.1558,2533.3,2532.9,2.58405]
[1725044420537,7.1558,2533.3,2532.8,3.2078]
[1725044420538,0.98704,2533.2,2532.8,3.2078]
[1725044420738,0.39486,2532.9,2532.8,3.2078]
[1725044420947,0.39489,2532.7,2532.6,0.00592323]
[1725044421447,0.39494,2532.4,2531.8,3.40158024]
[1725044421754,3.2078,2532.3,2532.1,0.39498]
[1725044421948,3.2078,2532.3,2532.2,0.39497]
[1725044422151,3.2078,2532.3,2532.1,0.39498]
[1725044422353,3.2078,2532.3,2531.9,0.3952]
[1725044422542,3.2078,2532.3,2532.1,0.39497]
[1725044422853,0.00592323,2532.4,2532.3,0.39495]
[1725044425149,0.00592323,2532.4,2532.2,3.41]
[1725044425343,0.00592323,2532.4,2532.3,0.39495]
[1725044425548,0.00592323,2532.4,2532.2,3.80496]
[1725044426448,0.00592323,2532.4,2532.3,0.39495]
[1725044426646,0.00592323,2532.4,2532.2,3.41]
[1725044426647,0.00592323,2532.4,2532.2,3.80496]
[1725044427245,0.00592323,2532.4,2532.3,0.39495]
[1725044427549,0.00592323,2532.4,2532.2,3.93230057]
[1725044428056,0.00592323,2532.4,2532.3,0.39495]
[1725044428242,2.31658108,2575.7,2532.3,3.9488]
[1725044428243,3.2078,2533.6,2532.3,3.9488]
[1725044428449,3.2078,2533.6,2532.9,3.2078]
[1725044428450,0.39484,2533.1,2532.9,3.2078]
[1725044428652,3.2078,2533.3,2532.6,3.41]
[1725044428949,3.2078,2533.3,2532.6,3.80489]
[1725044428950,0.39483,2533.1,2532.6,3.80489]
[1725044429252,0.00592323,2533.1,2532.6,3.41]
[1725044429449,0.40075323,2533.1,2532.6,3.8049]
[1725044429647,3.2078,2533.0,2532.6,3.8049]
[1725044429848,3.2078,2533.0,2532.7,0.39489]
[1725044430044,0.00592323,2533.1,2532.4,5.3561]
[1725044430045,3.21372323,2533.1,2532.4,5.3561]
[1725044430350,0.00592323,2533.1,2533.0,0.39484]
[1725044430553,0.00592323,2533.1,2532.8,3.2078]
[1725044430554,0.00592323,2533.1,2532.9,2.1496]
[1725044430859,0.00592323,2533.1,2532.9,2.54446]
[1725044431355,0.00592323,2533.1,2533.0,2.2067]
[1725044431852,0.00592323,2533.1,2533.0,4.82434]
[1725044433556,3.60256,2533.6,2533.1,0.39482]
[1725044433759,0.39477,2533.5,2533.1,0.39482]
[1725044433961,0.39477,2533.5,2533.0,4.4295]
[1725044433962,0.98692,2533.5,2533.0,4.4295]
[1725044434157,7.155,2533.6,2533.0,4.4295]
[1725044434158,3.2078,2533.1,2533.0,4.4295]
[1725044434658,7.55063,2533.1,2533.0,4.4295]
[1725044434857,7.55063,2533.1,2533.0,2.2067]
[1725044435155,8.53771,2533.1,2533.0,2.2067]
[1725044435762,7.55063,2533.1,2533.0,2.2067]
[1725044435955,0.00592323,2533.3,2533.0,2.2067]
[1725044436256,0.00592323,2533.3,2533.2,0.39481]
[1725044437456,0.00592323,2533.3,2533.2,2.1236]
[1725044437654,0.00592323,2533.3,2533.2,2.51841]
[1725044437852,3.2078,2534.2,2533.5,0.39476]
[1725044438050,5.22312,2534.3,2533.5,0.39476]
[1725044438051,0.39472,2533.9,2533.5,0.39476]
[1725044438454,0.3947,2534.0,2533.5,0.39476]
[1725044438660,0.3947,2533.9,2533.5,0.39476]
[1725044438858,8.43092,2534.3,2533.4,3.2078]
[1725044438859,0.39472,2533.8,2533.4,3.2078]
[1725044439163,0.39482,2533.2,2532.7,3.2078]
[1725044439363,3.2078,2533.7,2532.7,3.2078]
[1725044439364,3.2078,2533.3,2532.8,2.12952323]
[1725044439662,0.98704,2533.2,2532.8,2.12952323]
[1725044439866,0.39485,2533.0,2532.8,2.12952323]
[1725044440458,0.39484,2533.1,2532.8,2.12952323]
[1725044440762,0.39484,2533.1,2532.8,2.52439323]
[1725044440965,0.39482,2533.2,2532.9,0.39486]
[1725044441160,0.39484,2533.1,2532.9,2.1382]
[1725044442466,0.39482,2533.2,2532.9,2.53306]
[1725044442961,3.2078,2533.4,2533.1,0.39482]
[1725044442962,0.39479,2533.4,2533.1,0.39482]
[1725044443159,0.3948,2533.3,2533.0,0.39484]
[1725044443358,0.98688,2533.6,2532.9,2.1382]
[1725044443669,0.39483,2533.1,2532.9,2.1382]
[1725044443866,0.98692,2533.5,2532.9,2.1382]
[1725044444069,3.2078,2533.2,2532.8,0.00592323]
[1725044444363,0.39486,2532.9,2532.8,0.00592323]
[1725044444771,4.34286,2532.9,2532.8,0.00592323]
[1725044445463,5.37219625,2532.9,2532.8,0.00592323]
[1725044446170,12.35934625,2532.9,2532.8,0.00592323]
[1725044446369,10.97733625,2532.9,2532.3,2.1707]
[1725044446569,10.97733625,2532.9,2532.1,5.381]
[1725044446570,0.39495,2532.3,2532.1,5.381]
[1725044446873,0.39495,2532.3,2532.1,2.56817]
[1725044447164,3.9488,2532.2,2531.7,3.2078]
[1725044447366,0.39504,2531.8,2531.7,0.00592323]
[1725044447679,0.39503,2531.8,2531.7,0.00592323]
[1725044447968,8.58176625,2531.8,2531.7,0.00592323]
[1725044448168,9.56934625,2531.8,2531.7,0.00592323]
[1725044448471,7.55243,2531.8,2531.7,0.00592323]
[1725044449168,13.55243,2531.8,2531.7,0.00592323]
[1725044449562,14.58291524,2531.8,2531.7,0.00592323]
[1725044449758,13.55243,2531.8,2531.7,0.00592323]
[1725044450469,16.07467067,2531.8,2531.7,0.00592323]
[1725044450668,15.08709067,2531.8,2531.7,0.00592323]
[1725044450862,7.1574,2531.8,2531.7,0.00592323]
[1725044451166,8.18739754,2531.8,2531.7,0.00592323]
[1725044451573,8.58242754,2531.8,2531.7,0.00592323]
[1725044452568,8.18739754,2531.8,2531.7,0.00592323]
[1725044452770,8.18739754,2531.8,2531.7,0.40097323]
[1725044452771,3.2078,2531.8,2531.7,0.40097323]
[1725044453170,3.2078,2531.8,2531.7,0.00592323]
[1725044453474,7.1574,2531.8,2531.7,0.00592323]
[1725044456392,3.2078,2531.8,2531.7,0.00592323]
[1725044456590,3.2078,2531.8,2531.7,2.02092323]
[1725044457287,7.1574,2531.8,2531.7,2.02092323]
[1725044459079,3.9496,2531.8,2531.7,2.02092323]
[1725044459490,3.24549754,2532.1,2531.7,2.02092323]
[1725044459491,1.02999754,2532.1,2531.7,2.02092323]
[1725044459686,3.21372323,2532.2,2531.7,2.02092323]
[1725044459687,1.43089077,2532.2,2531.7,2.02092323]
[1725044459885,1.43089077,2532.2,2531.9,0.39501]
[1725044460087,5.37458754,2532.1,2531.8,0.39502]
[1725044460292,0.39499,2532.1,2531.7,2.02092323]
[1725044460586,1.03592077,2532.2,2531.7,2.02092323]
[1725044460786,0.39503,2531.8,2531.7,0.00592323]
[1725044461291,4.34463,2531.8,2531.7,0.00592323]
[1725044461491,12.36220754,2531.8,2531.7,0.00592323]
[1725044461692,0.98772,2531.5,2531.0,0.7760026]
[1725044461892,0.39514,2531.2,2531.0,0.3808526]
[1725044462094,3.9512,2531.1,2530.9,0.39516]
[1725044462394,0.39512,2531.3,2531.1,0.39514]
[1725044462797,0.39512,2531.3,2530.9,0.00592323]
[1725044462798,3.2078,2531.4,2531.2,0.39512]
[1725044463183,3.60289,2531.4,2531.1,0.39513]
[1725044463379,3.60289,2531.4,2531.2,0.39512]
[1725044463591,3.60289,2531.4,2530.9,0.00592323]
[1725044463592,3.6029,2531.4,2531.0,0.39514]
[1725044463800,0.98765,2531.7,2530.9,0.00592323]
[1725044463801,4.23707562,2531.7,2530.9,4.55592323]
[1725044464096,3.60286,2531.7,2531.0,0.9879]
[1725044464395,3.2078,2531.7,2531.1,2.1102]
[1725044464894,3.2078,2531.7,2531.4,0.39509]
[1725044465188,0.39506,2531.6,2531.5,2.1793]
[1725044465389,3.2078,2531.7,2531.5,2.1793]
[1725044465390,3.60285,2531.7,2531.5,2.1793]
[1725044465592,3.2078,2531.7,2531.5,2.1793]
[1725044465800,1.02927562,2532.1,2531.6,3.9504]
[1725044465990,1.5405839,2532.2,2532.1,0.39498]
[1725044465991,0.00592323,2532.2,2532.1,0.39498]
[1725044466479,0.00592323,2532.2,2532.0,3.2078]
[1725044466695,0.00592323,2532.2,2531.6,5.70565]
[1725044466899,0.00592323,2532.2,2531.6,5.3106]
[1725044467082,0.39499,2532.1,2531.6,2.1028]
[1725044467289,3.21372323,2532.2,2531.6,2.1028]
[1725044467789,3.21372323,2532.2,2531.6,5.3106]
[1725044467790,0.00592323,2532.2,2531.6,5.3106]
[1725044468192,0.00592323,2532.2,2531.8,0.39502]
[1725044468393,0.00592323,2532.2,2531.7,0.39504]
[1725044468589,0.00592323,2532.2,2531.6,9.8606]
[1725044468790,0.00592323,2532.2,2531.6,10.84824]
[1725044468990,0.00592323,2532.2,2531.9,0.39501]
[1725044469391,0.00592323,2532.2,2531.8,4.94502]
[1725044469596,4.94297323,2532.2,2531.6,5.3106]
[1725044469795,0.39501,2532.0,2531.6,5.3106]
[1725044470098,0.39502,2531.9,2531.6,5.3106]
[1725044470295,0.00592323,2532.2,2531.6,5.3106]
[1725044470501,0.39502,2531.9,2531.6,5.3106]
[1725044471299,0.39502,2531.9,2531.6,2.1028]
[1725044471596,0.39503,2531.8,2531.6,2.1028]
[1725044471994,0.39502,2531.9,2531.6,2.1028]
[1725044472193,0.39503,2531.8,2531.6,2.1028]
[1725044472792,1.03519885,2532.2,2531.6,2.49786]
[1725044472994,0.00592323,2532.2,2531.6,2.1028]
[1725044473200,0.39502,2531.9,2531.6,2.1028]
[1725044473803,1.03519885,2532.2,2531.6,2.1028]
[1725044474097,0.00592323,2532.2,2531.6,2.1028]
[1725044474305,0.00592323,2532.2,2531.8,0.39502]
[1725044474599,0.40089323,2532.2,2531.8,0.39502]
[1725044474795,0.00592323,2532.2,2532.1,0.39498]
[1725044474999,0.00592323,2532.2,2532.0,0.39499]
[1725044475297,1.02927562,2532.7,2532.3,0.39495]
[1725044475497,4.23707562,2532.9,2532.1,10.79786]
[1725044475700,10.11392763,2533.5,2533.0,0.39483]
[1725044475701,1.02927562,2533.4,2533.0,0.39483]
[1725044475906,2.094,2533.6,2533.1,2.1776]
[1725044475907,3.12327562,2533.6,2533.1,2.1776]
[1725044476099,0.39481,2533.2,2533.1,2.1776]
[1725044476590,0.3948,2533.3,2533.1,2.1776]
[1725044476791,0.40071323,2533.4,2533.1,2.1776]
[1725044476988,3.21372323,2533.4,2532.9,0.00592323]
[1725044477192,0.39482,2533.2,2532.9,0.00592323]
[1725044477598,0.987,2533.3,2532.9,0.00592323]
[1725044477794,3.60264,2533.0,2532.9,0.00592323]
[1725044477994,0.39491,2532.6,2532.5,2.0774]
[1725044478195,3.2078,2533.0,2532.2,0.39496]
[1725044478196,0.39493,2532.5,2532.2,0.39496]
[1725044478398,0.39492,2532.5,2532.2,0.39496]
[1725044478601,0.39494,2532.4,2532.3,2.0828]
[1725044478890,0.39493,2532.5,2532.3,2.0828]
[1725044479100,0.39492,2532.6,2532.3,2.47774]
[1725044479708,0.39494,2532.4,2532.3,2.0828]
[1725044479895,4.34372,2532.6,2532.3,2.47775]
[1725044480096,0.39492,2532.5,2532.3,2.47774]
[1725044480402,0.39494,2532.4,2532.3,2.0828]
[1725044480897,4.34374,2532.4,2532.3,2.0828]
[1725044481297,3.9488,2532.4,2532.3,2.0828]
[1725044481494,3.9488,2532.4,2532.1,0.00592323]
[1725044481693,3.9488,2532.4,2532.1,0.40090323]
[1725044481694,0.39495,2532.4,2532.1,0.40090323]
[1725044482002,0.39497,2532.2,2532.1,0.00592323]
[1725044482606,4.34457,2532.2,2532.1,0.00592323]
[1725044483704,11.332,2532.2,2532.1,0.00592323]
[1725044484104,6.36127562,2532.2,2532.1,0.00592323]
[1725044485002,13.34870562,2532.2,2532.1,0.00592323]
[1725044485209,12.31943,2532.2,2532.1,0.00592323]
[1725044485511,13.85409067,2532.2,2532.1,0.00592323]
[1725044485699,17.06189067,2532.2,2532.1,0.00592323]
[1725044485903,16.07446067,2532.2,2532.1,0.00592323]
[1725044487808,14.5398,2532.2,2532.1,0.00592323]
[1725044488201,22.04542476,2532.2,2530.6,3.2078]
[1725044488396,0.39516,2531.0,2530.9,0.39516]
[1725044488596,0.39516,2531.0,2530.8,2.1115]
[1725044488597,0.39516,2531.0,2530.8,2.50668]
[1725044489007,1.03101938,2531.0,2530.9,0.39517]
[1725044489196,1.42616938,2531.1,2530.9,0.39517]
[1725044489400,1.42616938,2531.1,2531.0,0.39516]
[1725044489596,2.54026231,2531.3,2531.1,0.39514]
[1725044489597,1.03101938,2531.2,2531.1,0.39514]
[1725044490110,1.94757231,2531.3,2531.2,0.39512]
[1725044490111,1.03694261,2531.3,2531.2,0.39512]
[1725044490312,0.00592323,2531.3,2531.2,0.39512]
[1725044490607,0.00592323,2531.3,2530.9,2.1928]
[1725044490808,1.43206261,2531.3,2531.1,0.39514]
[1725044491405,1.43206261,2531.3,2531.0,0.39515]
[1725044491606,1.03694261,2531.3,2531.1,0.39513]
[1725044491807,0.00592323,2531.3,2530.9,2.1928]
[1725044492008,0.00592323,2531.3,2531.2,0.39512]
[1725044492508,0.00592323,2531.3,2531.2,4.34552]
[1725044493615,1.03101938,2531.7,2531.4,0.39509]
[1725044493810,1.03101938,2531.7,2531.2,3.2078]
[1725044494108,1.03101938,2531.7,2531.3,2.4757]
[1725044494303,1.03101938,2531.6,2531.3,2.4757]